Cogmind - Beta 16.1 @@@ ROGUE MODE // 2026.04.10 @ 17:48:14 Player: Maelyn Result: Destroyed by as-25307 with Assembled Rifle Performance ------------- Evolutions (0) 0 Regions Visited (2) 400 Robots Destroyed (12) 60 Value Destroyed (217) 217 Prototype IDs (0) 0 Alien Tech Used (0) 0 Bonus (0) 0 TOTAL SCORE: 677 Bonus ------- None Cogmind --------- Core Integrity 0/250 Matter 285/300 Energy 350/350 System Corruption 5% Temperature Cool (97) Movement Core (400) Ox7 Location -10/Mines Parts ------- > --- POWER (1) -------- (None) > --- PROPULSION (2) --- (None) > --- UTILITY (2) ------ Large Storage Unit High-capacity Battery > --- WEAPON (2) ------- (None) > --- INVENTORY (15) --- Ion Engine Light Ion Engine Aluminum Leg Aluminum Leg Improved Heat Sink Medium Storage Unit High-capacity Battery (250) Core Shielding Hacking Suite EM Pulse Gun Medium Laser Beam Cannon Beam Cannon Beam Cannon Datajack Peak State ------------ > --- POWER ------------ Ion Engine > --- PROPULSION ------- Light Treads Light Treads > --- UTILITY ---------- Medium Storage Unit Large Storage Unit > --- WEAPON ----------- Beam Cannon Beam Cannon > --- INVENTORY -------- Ion Engine Light Ion Engine Aluminum Leg Aluminum Leg Improved Heat Sink Small Storage Unit High-capacity Battery Core Shielding EM Pulse Gun Medium Laser Grenade Launcher [Rating: 8] Favorites ----------- Power Ion Engine Engine Ion Engine Propulsion Light Treads Treads Light Treads Utility Large Storage Unit Device Seismic Detector Storage Large Storage Unit Weapon Beam Cannon Energy Gun EM Pulse Gun Energy Cannon Beam Cannon Launcher Grenade Launcher Build | -11 -10 -10 ------- Run | Yrd Mat Min Slots Evolved . | . . . Power . | . . . Propulsion . | . . . Utility . | . . . Weapon . | . . . Parts Attached 14 | 7 6 1 Power 2 | 1 1 . Engine 2 | 1 1 . Core . | . . . Reactor . | . . . Propulsion 2 | 2 . . Treads 2 | 2 . . Leg . | . . . Wheel . | . . . Hover . | . . . Flight . | . . . Utility 5 | 2 3 . Device 1 | 1 . . Storage 4 | 1 3 . Processor . | . . . Hackware . | . . . Protection . | . . . Artifact . | . . . Weapon 5 | 2 2 1 Energy Gun 2 | 2 . . Energy Cannon 2 | . 2 . Ballistic Gun . | . . . Ballistic Cannon . | . . . Launcher 1 | . . 1 Special Weapon . | . . . Impact Weapon . | . . . Slashing Weapon . | . . . Piercing Weapon . | . . . Special Melee Weapon . | . . . Unidentified Prototypes . | . . . Parts Lost 7 | . 2 5 Power 1 | . . 1 Propulsion 2 | . . 2 Utility 1 | . 1 . Weapon 3 | . 1 2 Highest Loss Streak 5 | . 2 5 To Critical Strikes . | . . . Average Backups 8 | 3 8 15 Power 1 | . 1 2 Propulsion 1 | 1 2 2 Utility 2 | . 3 5 Weapon 2 | 1 2 5 Tool/Special . | . . . Unused Backups 10 | . . 10 Power 1 | . . 1 Propulsion 2 | . . 2 Utility 3 | . . 3 Weapon 3 | . . 3 Tool/Special 1 | . . 1 Average Slot Usage (%) 94 | . 94 97 Engine 14 | . 14 14 Treads 27 | . 27 28 Device 5 | . 6 . Storage 19 | . 18 28 Energy Gun 10 | . 11 . Energy Cannon 15 | . 14 22 Peak Build Rating 8 | 7 8 8 Average Rating 6 | 4 7 7 On Entrance 5 | . 7 8 Avg Prop Armor Cover (%) . | . . . Naked Turns . | . . . Heaviest Build 41 | 15 41 35 Greatest Support 40 | 40 40 40 Greatest Overweight (x) 8 | . 8 7 Average Overweight (x) . | . . . Largest Inventory Capacity 15 | 8 15 15 Average Capacity 13 | 7 14 15 Most Carried 15 | 7 15 15 Average Carried 8 | 3 8 15 Final Capacity 15 | 8 15 15 Final Carried 15 | 4 15 15 Class Distribution -------------------- 100% | Mutant Dominant Class ---------------- Mutant | -10/Materials Mutant | -10/Mines Resources | -11 -10 -10 ----------- Run | Yrd Mat Min Matter Collected 400 | 244 156 . Remotely . | . . . Salvage Created 436 | 20 393 23 Parts 25 | 4 21 . Haulers Intercepted 1 | . 1 . Recyclers Shooed 1 | . 1 . Parts Field Recycled . | . . . Retrieved Matter . | . . . Parts Self-Destructed . | . . . Prevented . | . . . Parts Restored . | . . . Kills | -11 -10 -10 ------- Run | Yrd Mat Min Combat Hostiles Destroyed 15 | . 6 9 Guns 3 | . 3 . Cannons 3 | . 2 1 AOE 9 | . 1 8 Classes Destroyed 8 | 1 6 1 Worker 1 | . 1 . Tunneler 1 | 1 . . Hauler 1 | . 1 . Recycler 1 | . 1 . Operator 2 | . 2 . Swarmer 2 | . 2 . Grunt 4 | . 4 . Assembled 9 | . . 9 Best Kill Streak 9 | 1 5 9 Combat Bots Only 9 | . 2 9 Max Kills in Single Turn 5 | 1 2 5 Gunslinging . | . . . Exploded 5 | . 1 5 Melee . | . . . Uniques/NPCs Destroyed . | . . . Combat | -11 -10 -10 -------- Run | Yrd Mat Min Hostile Shots Fired 91 | . 40 51 Missed 25 | . 13 12 Hits 66 | . 27 39 Melee 8 | . . 8 Projectile 58 | . 27 31 Damage Taken 935 | . 231 704 Core 257 | . 48 209 Absorbed by Shields . | . . . Core Remaining (%) 100 | 100 . . Volleys Fired 24 | 2 18 4 Largest 2 | 2 2 2 Hottest 120 | 80 120 90 Shots Fired 44 | 4 33 7 Gun 27 | 4 23 . Cannon 14 | . 10 4 Launcher 3 | . . 3 Special . | . . . Kinetic . | . . . Thermal 14 | . 10 4 Explosive 3 | . . 3 Electromagnetic 27 | 4 23 . Robot Hit Streak 8 | 1 8 . Robot Miss Streak 4 | 2 4 1 Penetration Max . | . . . Secondary Targets . | . . . Shots Hit Robots 21 | 1 20 . Core Hits 36 | 1 14 21 Critical Kills . | . . . Critical Parts Destroyed . | . . . Critical Strikes . | . . . Melee Attacks . | . . . Impact . | . . . Slashing . | . . . Piercing . | . . . Sneak Attacks . | . . . Combat Hostiles . | . . . Follow-up Attacks . | . . . Damage Inflicted 920 | 12 404 504 Guns 166 | 12 154 . Cannons 193 | . 158 35 Explosions 546 | . 77 469 Melee . | . . . Ramming 15 | . 15 . Kinetic . | . . . Thermal 270 | . 235 35 Explosive 469 | . . 469 Electromagnetic 166 | 12 154 . Impact . | . . . Slashing . | . . . Piercing . | . . . Highest Corruption 5 | . . 5 Average Corruption 5 | . . 5 Corruption Purged . | . . . Corruption Blocked . | . . . Effects 1 | . . 1 Message Errors 1 | . . 1 Overload Shots . | . . . Overflow Damage 26 | . 1 25 Projectiles . | . . . Explosions 26 | . 1 25 Melee . | . . . Knockbacks . | . . . Impact . | . . . Kinetic . | . . . Secondary . | . . . Self-Inflicted Damage 70 | . . 70 Shots 2 | . . 2 Rammed 1 | . 1 . Targets Rammed 1 | . 1 . Kicked . | . . . Crushed . | . . . Highest Temperature 132 | 36 132 131 Average Temperature 47 | 20 41 80 Received Heat Transfer 164 | . 24 140 Siege Activations . | . . . Martial Activations . | . . . Shielding Activations . | . . . Robots Disrupted . | . . . Combat Hostiles . | . . . Robots Corrupted . | . . . Combat Hostiles . | . . . Parts Fried 1 | . 1 . Impact Corruptions . | . . . Robots Melted . | . . . Combat Hostiles . | . . . Parts Melted . | . . . Heat Transferred 507 | . 433 74 Parts Sabotaged . | . . . Parts Stolen . | . . . Parts Stripped . | . . . Power Chain Reactions 1 | . 1 . Alert | -11 -10 -10 ------- Run | Yrd Mat Min Maximum Alert Level . | . . . Low Security (%) 100 | 100 100 100 Level 1 . | . . . Level 2 . | . . . Level 3 . | . . . Level 4 . | . . . Level 5 . | . . . High Security . | . . . Max Security . | . . . Peak Influence 53 | 5 53 20 Initial . | . . . Average 7 | . 9 2 Influence Increases 189 | 5 160 24 Destroy 0b10 Robot/C 120 | . 120 . Destroy 0b10 Robot/NC 30 | 5 25 . Destroy Leader 12 | . 12 . Destroy Structure 27 | . 3 24 Influence Decreases 189 | 5 160 24 Time Decay 165 | 5 150 10 Lost Part 24 | . 10 14 Squads Dispatched . | . . . Investigation . | . . . Extermination . | . . . Reinforcement . | . . . Assault . | . . . Garrison . | . . . Intercept . | . . . Searches Triggered . | . . . Construction Impeded . | . . . Haulers Reinforced . | . . . Active Scanning Responses . | . . . Cargo Convoy Interrupts . | . . . Stealth | -11 -10 -10 --------- Run | Yrd Mat Min Distress Signals . | . . . Communications Jammed . | . . . Distress Signals . | . . . Times Spotted 30 | . 10 20 Peak Tracking Total 20 | . 3 20 Tactical Retreats . | . . . Traps | -11 -10 -10 ------- Run | Yrd Mat Min Traps Triggered 3 | . 3 . Indirectly . | . . . Trap Hack Attempts . | . . . Triggered . | . . . Disarmed . | . . . Reprogrammed . | . . . Reused . | . . . Traps Extracted . | . . . Installed . | . . . Triggered . | . . . Machines | -11 -10 -10 ---------- Run | Yrd Mat Min Machines Disabled . | . . . Max in Single Turn . | . . . Machines Repaired . | . . . Machines Dismantled . | . . . Machines Sabotaged . | . . . Overloaded Fab Kills . | . . . Hacking | -11 -10 -10 --------- Run | Yrd Mat Min Machines Accessed 1 | . 1 . Terminals 1 | . 1 . Fabricators . | . . . Repair Stations . | . . . Recycling Units . | . . . Scanalyzers . | . . . Garrison Access . | . . . Total Hacks 3 | . 3 . Successful 1 | . 1 . Failed 2 | . 2 . Catastrophic . | . . . Database Lockouts . | . . . Manual 3 | . 3 . Terminals 3 | . 3 . Fabricators . | . . . Repair Stations . | . . . Recycling Units . | . . . Scanalyzers . | . . . Garrison Access . | . . . Terminal Hacks . | . . . Fabricator Hacks . | . . . Repair Station Hacks . | . . . Recycling Unit Hacks . | . . . Scanalyzer . | . . . Garrison Access Hacks . | . . . Unauthorized Hacks 1 | . 1 . Terminals 1 | . 1 . Botnet 1 | . 1 . Fabricators . | . . . Repair Stations . | . . . Recycling Units . | . . . Scanalyzers . | . . . Garrison Access . | . . . Data Cores Recovered 2 | . 2 . Used . | . . . Hacking Detections 1 | . 1 . Full Trace Events . | . . . Feedback Events . | . . . Feedback Blocked . | . . . Robot Schematics Acquired . | . . . Robots Built . | . . . Authchips . | . . . Time . | . . . Total Robot Build Rating . | . . . Part Schematics Acquired . | . . . Parts Built . | . . . Authchips . | . . . Time . | . . . Total Part Build Rating . | . . . Part Studies Acquired . | . . . Parts Repaired . | . . . Time . | . . . Parts Recycled . | . . . Recycled Matter . | . . . Retrieved Matter . | . . . Retrieved Components . | . . . Parts Scanalyzed . | . . . Part Schematics Acquired . | . . . Parts Damaged . | . . . Bothacking | -11 -10 -10 ------------ Run | Yrd Mat Min Used RIF Installer . | . . . Robots Hacked . | . . . Non-combat . | . . . Combat . | . . . Robot Hacks Applied . | . . . Relay Couplers Released . | . . . Fabnet Peak Effective % . | . . . Robots Rewired . | . . . Allies Hacked . | . . . Hacks Repelled . | . . . Allies | -11 -10 -10 -------- Run | Yrd Mat Min Total Allies . | . . . Largest Group . | . . . Highest-Rated Group . | . . . Highest-Rated Ally . | . . . Total Orders . | . . . Ally Attacks . | . . . Total Damage . | . . . Kills . | . . . Allies Corrupted . | . . . Allies Melted . | . . . Intel | -11 -10 -10 ------- Run | Yrd Mat Min Active Infowar (turns) 351 | 46 305 . Seismic 351 | 46 305 . Robot Analysis Total . | . . . Derelict Logs Recovered . | . . . Drone Launches . | . . . Drone Recoveries . | . . . Exploration | -11 -10 -10 ------------- Run | Yrd Mat Min Turns Passed 888 | 117 722 49 Spaces Moved 480 | 67 391 22 Core 13 | 11 1 1 Treads 467 | 56 390 21 Legs . | . . . Wheels . | . . . Hover . | . . . Flight . | . . . Fastest Speed 50 | 50 160 160 Average Speed 160 | 141 162 178 Slowest Speed 450 | 160 450 400 Overloaded Moves . | . . . Propulsion Burnouts . | . . . Robots Hopped . | . . . Potential Cave-ins . | . . . Cave-ins Triggered . | . . . Exploration Rate (%) 19 | 5 44 10 Regions Visited 2 Branch Regions 1 Pre-discovered Areas . | . . . Known Exits Taken . | . . . Unknown Exits Taken 2 | 1 1 . Scrap Searched . | . . . Spaces Dug . | . . . Terrain Destroyed 31 | . 2 29 Melee . | . . . Projectile . | . . . AOE 31 | . 2 29 Terrain Rammed . | . . . Walls Destroyed . | . . . Machines Disabled . | . . . Actions | -11 -10 -10 --------- Run | Yrd Mat Min Total 553 | 85 441 27 Wait 1 | . 1 . Move 478 | 66 390 22 Hop . | . . . Pick Up 24 | 10 14 . Fast Attach 9 | 1 8 . Attach 8 | 6 2 . Detach . | . . . Swap 5 | . 4 1 Drop 3 | . 3 . Fire 24 | 2 18 4 Melee . | . . . Ram . | . . . Kick . | . . . Crush 1 | . 1 . Escape Stasis . | . . . Rewire . | . . . Trap . | . . . Miscellaneous . | . . . Route ------- -11/Scrapyard -10/Materials -10/Mines History --------- Turn | Location | Event 13 | -11/Scrapyard | Discovered new exit (range 14) 118 | -11/Scrapyard | Entered Materials 301 | -10/Materials | Build established: Mutant 453 | -10/Materials | Discovered new exit (range 15) 840 | -10/Materials | Entered Mines 841 | -10/Mines | Assembled infested the area 885 | -10/Mines | Core integrity fell below 50% 889 | -10/Mines | Core integrity fell below 20% 889 | -10/Mines | Destroyed by as-25307 with Assembled Rifle Last Messages --------------- 00872_ as-94833 destroyed. 00875_ as-16614 destroyed. 00875_ as-72144 destroyed. 00878_ as-45327 destroyed. 00878_ Grenade Launcher destroyed. 00878_ Destroyed Grenade Launcher. 00878_ Destroyed Asb. Hover Unit. 00878_ as-06621 destroyed. 00878_ as-26169 destroyed. 00878_ as-80636 destroyed. 00878_ as-51769 destroyed. [Achievement: Quick And Dirty] 00881_ Lgt. Treads destroyed. 00881_ System corrupted by crushing effect (+5). 00882_ Ion Engine destroyed. 00884_ The unstable cave ceiling collapses. 00884_ Lgt. Treads destroyed. 00886_ as-76302 destroyed. 00887_ CJE /YTCS&R F0 DN9/W,JA9PGNO 00887_ Beam Cannon destroyed. Map ----- +----------------------------------------------------+ | ??????????????????????????????????????????? | | ??????????????????????????????????????????? | | ??????????????????????????????????????????? | | ??????????????????????????????????????????? | | ??????????????????????????????????????????? | | ??????????????????????????????????????????? | | ??????????????????????????????????????????? | | ??????????????????????????????????????????? | | ??????????????????????????????????????????? | | ??????????????????????????????????????????? | | ??????????????????????????????????????????? | | ??????????????????????????????????????????? | | ??????????????????????????????????????????? | | ???????????????????????????????#???#??????? | | ???????????????????????######## #??????? | | ??????????????????????## # #??????? | | ??????????????????????# aa #??????? | | ?????????????????????## %a " #??????? | | ?????????????????????# a # #??????? | | ?????????????????##### % #???????#??????? | | ?????????????????# aa #??????????????? | | ?????????????????# ### a% #??????????????? | | ?????????????????????# a #??????????????? | | ???????????####??????##aaa##??????????????? | | ???????????# ### ##??????????????? | | ?????????????????# @ ##???###???????? | | ?????????????????# #### ### ##??????? | | ??????????????????????## ##?????? | | ???????????????????????# #?????? | | ???????????????????????# #?????? | | ???????????????????????## ## #?????? | | ????????????????????????# ##?? #????? | | ????????????????????????# ###?????##????? | | ???????????????????????? ##?????????????? | | ???????????????????????? #??????????????? | | ???????????????????????## ??????????????? | | ????????????????????????## ??????????????? | | ?????????????????????????# ?????????????? | | ?????????????????????????? ?????????????? | | ?????????????????????????? ?????????????? | | ?????????????????????????? #????????????? | | ??????????????????????????####????????????? | | ??????????????????????????????????????????? | | ??????????????????????????????????????????? | | ??????????????????????????????????????????? | | | | | | | | | | | +----------------------------------------------------+ Best States ------------- Heat Dissipation 25 Energy Generation 10 Energy Capacity 500 Matter Stores 300 Matter Capacity 300 Sight Range 16 Terrain Scan Density 10 Evasion (%) 50 Recoil Reduction 2 Item Schematics ----------------- None Robot Schematics ------------------ None Fabricated ------------ Nothing Repaired ---------- Nothing Studied --------- None Alien Tech Used ----------------- None Achievements -------------- Hunted Quick And Dirty Challenges ------------ None Game ------ Seed LongswordElectronLauncher Manual? 0 Play Time 00:10:01 Cumulative 34.0 hours Start 2026.04.10 @ 17:39:02 End 2026.04.10 @ 17:48:14 Sessions 1 Manual Loads 0 Difficulty Rogue Special Mode None Game No. 91 Rogue 91 Adventurer 0 Explorer 0 Win Type - Total 0 Types 0/0/0/0/0/0/0/0/0/0 Lore% 14 Gallery% 24 Achievement% 16 Wizard Run 0 Options --------- Layout 2 ASCII 0 Keyboard 1 Movement Vi Keybinds 0 Fullscreen 2 Font 20/Terminus Map View 64x51 Zoom Use 0% Tactical HUD 1 Map Filters NONE Filters NONE Steam 1 RUN: 805726e6-5f6c-4610-a905-ad93faa477b4